[Event "Titled Tuesday Blitz April 11 Late 2023"]
[White "Remizov, Yaroslav"]
[Black "Corrales Jimenez, Fidel"]
[WhiteFideId "34134015"]
[BlackFideId "3506690"]
[WhiteElo "2412"]
[BlackElo "2541"]
[Result "1-0"]
[Round "10"]
[TimeControl "180+2"]
[Date "2023.04.11"]
[WhiteClock "0:00:07"]
[BlackClock "0:00:08"]

1. e4 {[%clk 0:03:00]}  c5 {[%clk 0:02:44]} 2. Nf3 {[%clk 0:03:00]}  d6 {[%clk 0:02:44]} 3. Bb5+ {[%clk 0:03:00]}  Nd7 {[%clk 0:02:43]} 4. O-O {[%clk 0:02:59]}  a6 {[%clk 0:02:43]} 5. Bd3 {[%clk 0:02:59]}  b5 {[%clk 0:02:40]} 6. c4 {[%clk 0:02:56]}  bxc4 {[%clk 0:02:40]} 7. Bxc4 {[%clk 0:02:55]}  Nb6 {[%clk 0:02:39]} 8. Be2 {[%clk 0:02:44]}  e5 {[%clk 0:02:38]} 9. Nc3 {[%clk 0:02:33]}  a5 {[%clk 0:02:37]} 10. Qb3 {[%clk 0:02:07]}  Bd7 {[%clk 0:02:33]} 11. Bb5 {[%clk 0:01:45]}  Be7 {[%clk 0:02:29]} 12. d3 {[%clk 0:01:39]}  Nf6 {[%clk 0:02:29]} 13. Bg5 {[%clk 0:01:39]}  O-O {[%clk 0:02:26]} 14. Bxf6 {[%clk 0:01:39]}  Bxf6 {[%clk 0:02:27]} 15. Bxd7 {[%clk 0:01:40]}  Nxd7 {[%clk 0:02:27]} 16. Nd5 {[%clk 0:01:40]}  Bg5 {[%clk 0:02:24]} 17. Nxg5 {[%clk 0:01:04]}  Qxg5 {[%clk 0:02:25]} 18. f4 {[%clk 0:01:05]}  exf4 {[%clk 0:02:23]} 19. Rxf4 {[%clk 0:01:06]}  Ne5 {[%clk 0:02:23]} 20. Raf1 {[%clk 0:01:05]}  Rab8 {[%clk 0:02:20]} 21. Qc3 {[%clk 0:01:05]}  a4 {[%clk 0:02:18]} 22. h3 {[%clk 0:01:00]}  h6 {[%clk 0:02:11]} 23. Kh2 {[%clk 0:01:00]}  Kh8 {[%clk 0:02:00]} 24. Ne3 {[%clk 0:00:45]}  Ng6 {[%clk 0:01:56]} 25. R4f3 {[%clk 0:00:43]}  Qe5+ {[%clk 0:01:56]} 26. Rg3 {[%clk 0:00:27]}  Rxb2 {[%clk 0:01:52]} 27. Qc4 {[%clk 0:00:27]}  Re2 {[%clk 0:01:09]} 28. Rf5 {[%clk 0:00:20]}  Qe8 {[%clk 0:01:00]} 29. d4 {[%clk 0:00:13]}  Qxe4 {[%clk 0:00:51]} 30. Qxe2 {[%clk 0:00:12]}  cxd4 {[%clk 0:00:49]} 31. Qg4 {[%clk 0:00:09]}  Qe6 {[%clk 0:00:38]} 32. Qxd4 {[%clk 0:00:08]}  Ne5 {[%clk 0:00:38]} 33. Rf2 {[%clk 0:00:08]}  g6 {[%clk 0:00:34]} 34. Ng4 {[%clk 0:00:08]}  Kh7 {[%clk 0:00:34]} 35. Nf6+ {[%clk 0:00:08]}  Kg7 {[%clk 0:00:34]} 36. Ng4 {[%clk 0:00:08]}  h5 {[%clk 0:00:33]} 37. Nxe5 {[%clk 0:00:09]}  dxe5 {[%clk 0:00:34]} 38. Qe3 {[%clk 0:00:09]}  f5 {[%clk 0:00:32]} 39. Rgf3 {[%clk 0:00:07]}  e4 {[%clk 0:00:33]} 40. Rg3 {[%clk 0:00:07]}  Qe5 {[%clk 0:00:30]} 41. Qg5 {[%clk 0:00:07]}  Rf6 {[%clk 0:00:30]} 42. Kh1 {[%clk 0:00:06]}  Kf7 {[%clk 0:00:27]} 43. Re3 {[%clk 0:00:06]}  Qa1+ {[%clk 0:00:25]} 44. Kh2 {[%clk 0:00:06]}  Qe5+ {[%clk 0:00:25]} 45. Qf4 {[%clk 0:00:06]}  Qe7 {[%clk 0:00:19]} 46. Rc3 {[%clk 0:00:06]}  Rd6 {[%clk 0:00:16]} 47. Rfc2 {[%clk 0:00:06]}  Kf6 {[%clk 0:00:13]} 48. Rc7 {[%clk 0:00:06]}  Qe6 {[%clk 0:00:13]} 49. Rh7 {[%clk 0:00:05]}  e3 {[%clk 0:00:09]} 50. Qh4+ {[%clk 0:00:05]}  Ke5 {[%clk 0:00:08]} 51. Qg3+ {[%clk 0:00:05]}  f4 {[%clk 0:00:08]} 52. Qg5+ {[%clk 0:00:05]}  Ke4 {[%clk 0:00:09]} 53. Re7 {[%clk 0:00:05]}  Kd3 {[%clk 0:00:08]} 54. Rxe6 {[%clk 0:00:05]}  Rxe6 {[%clk 0:00:09]} 55. Rc1 {[%clk 0:00:04]}  Re4 {[%clk 0:00:07]} 56. Qd5+ {[%clk 0:00:04]}  Rd4 {[%clk 0:00:07]} 57. Rd1+ {[%clk 0:00:05]}  Ke2 {[%clk 0:00:07]} 58. Qxd4 {[%clk 0:00:06]}  Kf2 {[%clk 0:00:07]} 59. Qxf4+ {[%clk 0:00:06]}  Ke2 {[%clk 0:00:08]} 60. Qf3# {[%clk 0:00:07]} 1-0


[Site "https://www.chess.com"]

[Event "Titled Tuesday Blitz April 11 Late 2023"]
[White "Keymer, Vincent"]
[Black "Zarnicki, Pablo"]
[WhiteFideId "12940690"]
[BlackFideId "100137"]
[WhiteElo "2651"]
[BlackElo "2468"]
[Result "1/2-1/2"]
[Round "10"]
[TimeControl "180+2"]
[Date "2023.04.11"]
[WhiteClock "0:00:05"]
[BlackClock "0:00:35"]

1. Nf3 {[%clk 0:02:59]}  Nf6 {[%clk 0:02:59]} 2. a3 {[%clk 0:02:58]}  d5 {[%clk 0:02:58]} 3. e3 {[%clk 0:02:58]}  g6 {[%clk 0:02:58]} 4. b4 {[%clk 0:02:58]}  Bg7 {[%clk 0:02:58]} 5. Bb2 {[%clk 0:02:58]}  O-O {[%clk 0:02:59]} 6. c4 {[%clk 0:02:58]}  c6 {[%clk 0:02:59]} 7. h3 {[%clk 0:02:58]}  a5 {[%clk 0:02:57]} 8. b5 {[%clk 0:02:58]}  c5 {[%clk 0:02:52]} 9. cxd5 {[%clk 0:02:19]}  Nxd5 {[%clk 0:02:51]} 10. Bxg7 {[%clk 0:02:18]}  Kxg7 {[%clk 0:02:52]} 11. Bc4 {[%clk 0:02:16]}  Nf6 {[%clk 0:02:28]} 12. O-O {[%clk 0:02:13]}  b6 {[%clk 0:02:28]} 13. Qb3 {[%clk 0:01:29]}  Nbd7 {[%clk 0:02:24]} 14. Nc3 {[%clk 0:01:07]}  Bb7 {[%clk 0:02:23]} 15. Ng5 {[%clk 0:01:07]}  Qe8 {[%clk 0:02:08]} 16. f4 {[%clk 0:01:06]}  h6 {[%clk 0:02:04]} 17. Nf3 {[%clk 0:01:06]}  e6 {[%clk 0:02:00]} 18. Rae1 {[%clk 0:01:04]}  Qe7 {[%clk 0:01:56]} 19. e4 {[%clk 0:01:04]}  Rfe8 {[%clk 0:01:42]} 20. d3 {[%clk 0:00:50]}  Rad8 {[%clk 0:01:39]} 21. Qb2 {[%clk 0:00:44]}  Kh7 {[%clk 0:01:36]} 22. Qf2 {[%clk 0:00:42]}  e5 {[%clk 0:01:25]} 23. Nxe5 {[%clk 0:00:34]}  Rf8 {[%clk 0:01:16]} 24. Nf3 {[%clk 0:00:30]}  Nh5 {[%clk 0:01:14]} 25. f5 {[%clk 0:00:28]}  Ne5 {[%clk 0:01:08]} 26. Nd5 {[%clk 0:00:22]}  Bxd5 {[%clk 0:01:07]} 27. exd5 {[%clk 0:00:21]}  Nxf3+ {[%clk 0:01:07]} 28. Qxf3 {[%clk 0:00:22]}  Qg5 {[%clk 0:00:54]} 29. fxg6+ {[%clk 0:00:18]}  fxg6 {[%clk 0:00:54]} 30. Qxf8 {[%clk 0:00:13]}  Rxf8 {[%clk 0:00:54]} 31. Rxf8 {[%clk 0:00:14]}  Nf4 {[%clk 0:00:50]} 32. Rf7+ {[%clk 0:00:12]}  Kg8 {[%clk 0:00:50]} 33. Rxf4 {[%clk 0:00:12]}  Qxf4 {[%clk 0:00:50]} 34. d6+ {[%clk 0:00:12]}  Kg7 {[%clk 0:00:46]} 35. Re7+ {[%clk 0:00:12]}  Kf8 {[%clk 0:00:43]} 36. Re6 {[%clk 0:00:11]}  Qc1+ {[%clk 0:00:41]} 37. Kf2 {[%clk 0:00:11]}  Qf4+ {[%clk 0:00:41]} 38. Ke2 {[%clk 0:00:11]}  Qd4 {[%clk 0:00:38]} 39. Rxg6 {[%clk 0:00:08]}  Qe5+ {[%clk 0:00:36]} 40. Kd2 {[%clk 0:00:05]}  Qb2+ {[%clk 0:00:35]} 41. Ke3 {[%clk 0:00:04]}  Qe5+ {[%clk 0:00:35]} 42. Kd2 {[%clk 0:00:05]}  Qb2+ {[%clk 0:00:35]} 43. Kd1 {[%clk 0:00:05]}  Qa1+ {[%clk 0:00:35]} 44. Ke2 {[%clk 0:00:05]}  Qe5+ {[%clk 0:00:35]} 45. Kd2 {[%clk 0:00:05]} 1/2-1/2


[Site "https://www.chess.com"]

[Event "Titled Tuesday Blitz April 11 Late 2023"]
[White "Howell, David W L"]
[Black "Hambleton, Aman"]
[WhiteFideId "410608"]
[BlackFideId "2606577"]
[WhiteElo "2567"]
[BlackElo "2511"]
[Result "1-0"]
[Round "10"]
[TimeControl "180+2"]
[Date "2023.04.11"]
[WhiteClock "0:00:29"]
[BlackClock "0:00:02"]

1. c4 {[%clk 0:03:00]}  c5 {[%clk 0:02:43]} 2. Nf3 {[%clk 0:02:58]}  b6 {[%clk 0:02:42]} 3. b3 {[%clk 0:02:55]}  Bb7 {[%clk 0:02:39]} 4. Bb2 {[%clk 0:02:56]}  e6 {[%clk 0:02:39]} 5. g3 {[%clk 0:02:55]}  Nf6 {[%clk 0:01:44]} 6. Bg2 {[%clk 0:02:53]}  d6 {[%clk 0:01:38]} 7. O-O {[%clk 0:02:52]}  Nbd7 {[%clk 0:01:38]} 8. e3 {[%clk 0:02:35]}  Be7 {[%clk 0:01:38]} 9. Qe2 {[%clk 0:02:35]}  O-O {[%clk 0:01:37]} 10. Nc3 {[%clk 0:02:35]}  Re8 {[%clk 0:01:17]} 11. Rac1 {[%clk 0:02:26]}  a6 {[%clk 0:01:14]} 12. Rfd1 {[%clk 0:02:27]}  Qc7 {[%clk 0:01:10]} 13. d4 {[%clk 0:02:21]}  cxd4 {[%clk 0:01:09]} 14. exd4 {[%clk 0:02:22]}  Rac8 {[%clk 0:01:03]} 15. Qe3 {[%clk 0:02:05]}  h6 {[%clk 0:01:00]} 16. h3 {[%clk 0:02:04]}  Qb8 {[%clk 0:00:59]} 17. d5 {[%clk 0:01:43]}  e5 {[%clk 0:00:32]} 18. Nh4 {[%clk 0:01:39]}  Bf8 {[%clk 0:00:28]} 19. Nf5 {[%clk 0:01:38]}  Kh7 {[%clk 0:00:16]} 20. g4 {[%clk 0:01:38]}  g6 {[%clk 0:00:15]} 21. Ng3 {[%clk 0:01:39]}  Bg7 {[%clk 0:00:13]} 22. Re1 {[%clk 0:01:28]}  Rcd8 {[%clk 0:00:13]} 23. Qf3 {[%clk 0:01:28]}  Kg8 {[%clk 0:00:12]} 24. h4 {[%clk 0:01:26]}  Nc5 {[%clk 0:00:07]} 25. g5 {[%clk 0:01:21]}  hxg5 {[%clk 0:00:08]} 26. hxg5 {[%clk 0:01:21]}  Nh7 {[%clk 0:00:04]} 27. Nce4 {[%clk 0:01:15]}  Bc8 {[%clk 0:00:01]} 28. Rc3 {[%clk 0:01:11]}  Qc7 {[%clk 0:00:01]} 29. Bc1 {[%clk 0:01:09]}  Qe7 {[%clk 0:00:01]} 30. Nxc5 {[%clk 0:01:04]}  bxc5 {[%clk 0:00:02]} 31. Ne4 {[%clk 0:01:05]}  Bf5 {[%clk 0:00:02]} 32. Qg3 {[%clk 0:01:05]}  f6 {[%clk 0:00:02]} 33. gxf6 {[%clk 0:00:57]}  Nxf6 {[%clk 0:00:03]} 34. Bg5 {[%clk 0:00:55]}  Qf7 {[%clk 0:00:02]} 35. Bxf6 {[%clk 0:00:52]}  Bxf6 {[%clk 0:00:03]} 36. Bh3 {[%clk 0:00:52]}  Bxh3 {[%clk 0:00:02]} 37. Qxh3 {[%clk 0:00:52]}  Bg7 {[%clk 0:00:03]} 38. Rf3 {[%clk 0:00:46]}  Qd7 {[%clk 0:00:03]} 39. Qg2 {[%clk 0:00:47]}  Rf8 {[%clk 0:00:02]} 40. Ree3 {[%clk 0:00:44]}  Rf4 {[%clk 0:00:01]} 41. Rg3 {[%clk 0:00:39]}  Qf5 {[%clk 0:00:02]} 42. Rg5 {[%clk 0:00:37]}  Qf7 {[%clk 0:00:01]} 43. Rxg6 {[%clk 0:00:37]}  Rf8 {[%clk 0:00:01]} 44. Reg3 {[%clk 0:00:35]}  Rxe4 {[%clk 0:00:01]} 45. Rxg7+ {[%clk 0:00:35]}  Qxg7 {[%clk 0:00:01]} 46. Rxg7+ {[%clk 0:00:35]}  Kh8 {[%clk 0:00:02]} 47. Qxe4 {[%clk 0:00:33]}  Kxg7 {[%clk 0:00:02]} 48. Qg4+ {[%clk 0:00:33]}  Kh6 {[%clk 0:00:01]} 49. Qe6+ {[%clk 0:00:33]}  Kg5 {[%clk 0:00:01]} 50. Qxd6 {[%clk 0:00:31]}  Rf5 {[%clk 0:00:01]} 51. Qxc5 {[%clk 0:00:31]}  e4 {[%clk 0:00:01]} 52. Qe3+ {[%clk 0:00:30]}  Kf6 {[%clk 0:00:02]} 53. Qxe4 {[%clk 0:00:30]}  a5 {[%clk 0:00:02]} 54. d6 {[%clk 0:00:29]} 1-0


[Site "https://www.chess.com"]

[Event "Titled Tuesday Blitz April 11 Late 2023"]
[White "Korchmar, Vasiliy"]
[Black "Baskakov, Egor"]
[WhiteFideId "24131750"]
[BlackFideId "24197866"]
[WhiteElo "2370"]
[BlackElo "2212"]
[Result "0-1"]
[Round "10"]
[TimeControl "180+2"]
[Date "2023.04.11"]
[WhiteClock "0:00:46"]
[BlackClock "0:01:07"]

1. e4 {[%clk 0:03:00]}  c5 {[%clk 0:03:00]} 2. Nf3 {[%clk 0:03:00]}  Nf6 {[%clk 0:03:00]} 3. e5 {[%clk 0:03:00]}  Nd5 {[%clk 0:03:01]} 4. Nc3 {[%clk 0:03:01]}  e6 {[%clk 0:03:01]} 5. Nxd5 {[%clk 0:02:58]}  exd5 {[%clk 0:03:02]} 6. d4 {[%clk 0:02:59]}  Nc6 {[%clk 0:03:02]} 7. dxc5 {[%clk 0:02:48]}  Bxc5 {[%clk 0:03:03]} 8. Bd3 {[%clk 0:02:47]}  d6 {[%clk 0:03:04]} 9. exd6 {[%clk 0:02:45]}  O-O {[%clk 0:03:03]} 10. O-O {[%clk 0:02:44]}  Qxd6 {[%clk 0:03:03]} 11. c3 {[%clk 0:02:32]}  h6 {[%clk 0:03:01]} 12. Be3 {[%clk 0:02:30]}  Bxe3 {[%clk 0:02:54]} 13. fxe3 {[%clk 0:02:31]}  Bg4 {[%clk 0:02:54]} 14. Qd2 {[%clk 0:02:29]}  Bxf3 {[%clk 0:02:53]} 15. Rxf3 {[%clk 0:02:29]}  Ne5 {[%clk 0:02:50]} 16. Rf4 {[%clk 0:02:27]}  Rfe8 {[%clk 0:02:45]} 17. Rd4 {[%clk 0:02:26]}  Rad8 {[%clk 0:02:37]} 18. c4 {[%clk 0:01:49]}  Qc5 {[%clk 0:02:04]} 19. cxd5 {[%clk 0:01:46]}  g6 {[%clk 0:01:59]} 20. Rc1 {[%clk 0:01:43]}  Qb6 {[%clk 0:01:50]} 21. Be2 {[%clk 0:01:39]}  Rc8 {[%clk 0:01:41]} 22. d6 {[%clk 0:01:33]}  Rxc1+ {[%clk 0:01:39]} 23. Qxc1 {[%clk 0:01:34]}  Nc6 {[%clk 0:01:37]} 24. Rd3 {[%clk 0:01:24]}  Qa5 {[%clk 0:01:26]} 25. a3 {[%clk 0:01:06]}  Qe5 {[%clk 0:01:21]} 26. Qc3 {[%clk 0:00:59]}  Qf5 {[%clk 0:01:10]} 27. Qd4 {[%clk 0:00:46]}  Nxd4 {[%clk 0:01:07]} 0-1


[Site "https://www.chess.com"]

[Event "Titled Tuesday Blitz April 11 Late 2023"]
[White "Kosteniuk, Alexandra"]
[Black "Dobre, Claudiu-Cristian"]
[WhiteFideId "4128125"]
[BlackFideId "1211854"]
[WhiteElo "2453"]
[BlackElo "2207"]
[Result "1-0"]
[Round "10"]
[TimeControl "180+2"]
[Date "2023.04.11"]
[WhiteClock "0:00:49"]
[BlackClock "0:00:01"]

1. e4 {[%clk 0:03:00]}  e5 {[%clk 0:03:00]} 2. Nf3 {[%clk 0:03:00]}  Nf6 {[%clk 0:03:00]} 3. Nc3 {[%clk 0:03:00]}  Nc6 {[%clk 0:03:00]} 4. a4 {[%clk 0:03:00]}  a6 {[%clk 0:02:47]} 5. Bc4 {[%clk 0:02:46]}  Nxe4 {[%clk 0:02:44]} 6. Nxe4 {[%clk 0:02:46]}  d5 {[%clk 0:02:45]} 7. Bd3 {[%clk 0:02:47]}  dxe4 {[%clk 0:02:40]} 8. Bxe4 {[%clk 0:02:48]}  Bd6 {[%clk 0:02:40]} 9. O-O {[%clk 0:02:42]}  O-O {[%clk 0:02:38]} 10. Re1 {[%clk 0:02:42]}  Re8 {[%clk 0:02:32]} 11. h3 {[%clk 0:02:30]}  Be6 {[%clk 0:01:52]} 12. d3 {[%clk 0:02:26]}  f6 {[%clk 0:01:46]} 13. Nh4 {[%clk 0:02:17]}  Qd7 {[%clk 0:01:29]} 14. Qh5 {[%clk 0:01:52]}  g6 {[%clk 0:01:25]} 15. Nxg6 {[%clk 0:01:52]}  hxg6 {[%clk 0:01:14]} 16. Bxg6 {[%clk 0:01:53]}  Red8 {[%clk 0:00:38]} 17. Re3 {[%clk 0:01:45]}  e4 {[%clk 0:00:38]} 18. Rxe4 {[%clk 0:01:44]}  Bf8 {[%clk 0:00:19]} 19. Rh4 {[%clk 0:01:39]}  Bg7 {[%clk 0:00:18]} 20. b3 {[%clk 0:01:17]}  Ne5 {[%clk 0:00:18]} 21. Qh7+ {[%clk 0:01:16]}  Kf8 {[%clk 0:00:18]} 22. Ba3+ {[%clk 0:01:16]}  Qd6 {[%clk 0:00:13]} 23. Bxd6+ {[%clk 0:01:15]}  cxd6 {[%clk 0:00:13]} 24. f4 {[%clk 0:01:07]}  Nxg6 {[%clk 0:00:10]} 25. Qxg6 {[%clk 0:01:07]}  Bf7 {[%clk 0:00:10]} 26. Qf5 {[%clk 0:01:07]}  Re8 {[%clk 0:00:08]} 27. Rf1 {[%clk 0:01:00]}  Rad8 {[%clk 0:00:08]} 28. Qg4 {[%clk 0:00:58]}  Re7 {[%clk 0:00:07]} 29. f5 {[%clk 0:00:56]}  Bd5 {[%clk 0:00:07]} 30. Qd4 {[%clk 0:00:54]}  Bc6 {[%clk 0:00:06]} 31. Rg4 {[%clk 0:00:53]}  Re5 {[%clk 0:00:03]} 32. Rg6 {[%clk 0:00:51]}  Kf7 {[%clk 0:00:03]} 33. Qg4 {[%clk 0:00:51]}  Bf8 {[%clk 0:00:01]} 34. Qh4 {[%clk 0:00:49]}  Ke8 {[%clk 0:00:01]} 1-0


[Site "https://www.chess.com"]

[Event "Titled Tuesday Blitz April 11 Late 2023"]
[White "Gharibyan, Mamikon"]
[Black "Di Berardino, Diego Rafael"]
[WhiteFideId "13308300"]
[BlackFideId "2105446"]
[WhiteElo "2445"]
[BlackElo "2432"]
[Result "1-0"]
[Round "10"]
[TimeControl "180+2"]
[Date "2023.04.11"]
[WhiteClock "0:00:30"]
[BlackClock "0:00:03"]

1. e4 {[%clk 0:03:00]}  Nf6 {[%clk 0:02:52]} 2. Nc3 {[%clk 0:02:57]}  d5 {[%clk 0:02:52]} 3. e5 {[%clk 0:02:49]}  d4 {[%clk 0:02:52]} 4. exf6 {[%clk 0:02:49]}  dxc3 {[%clk 0:02:52]} 5. bxc3 {[%clk 0:02:46]}  exf6 {[%clk 0:02:47]} 6. d4 {[%clk 0:02:40]}  Bd6 {[%clk 0:02:47]} 7. Bd3 {[%clk 0:02:40]}  O-O {[%clk 0:02:46]} 8. Qf3 {[%clk 0:02:40]}  Re8+ {[%clk 0:02:43]} 9. Ne2 {[%clk 0:02:41]}  c6 {[%clk 0:02:37]} 10. O-O {[%clk 0:02:39]}  Qc7 {[%clk 0:02:37]} 11. Ng3 {[%clk 0:02:36]}  g6 {[%clk 0:02:35]} 12. Qxf6 {[%clk 0:02:35]}  Nd7 {[%clk 0:02:28]} 13. Qh4 {[%clk 0:02:33]}  Nf8 {[%clk 0:02:20]} 14. Ne4 {[%clk 0:02:29]}  Be7 {[%clk 0:02:15]} 15. Nf6+ {[%clk 0:02:26]}  Bxf6 {[%clk 0:02:16]} 16. Qxf6 {[%clk 0:02:26]}  Qe7 {[%clk 0:02:08]} 17. Qf3 {[%clk 0:02:19]}  Qh4 {[%clk 0:02:01]} 18. h3 {[%clk 0:02:16]}  Be6 {[%clk 0:01:59]} 19. Bf4 {[%clk 0:02:10]}  Bd5 {[%clk 0:01:58]} 20. Qg3 {[%clk 0:02:10]}  Qxg3 {[%clk 0:01:55]} 21. Bxg3 {[%clk 0:02:11]}  b5 {[%clk 0:01:51]} 22. a4 {[%clk 0:02:09]}  a6 {[%clk 0:01:51]} 23. Rfe1 {[%clk 0:02:02]}  Rxe1+ {[%clk 0:01:47]} 24. Rxe1 {[%clk 0:02:00]}  Ne6 {[%clk 0:01:40]} 25. Ra1 {[%clk 0:01:58]}  h5 {[%clk 0:01:32]} 26. h4 {[%clk 0:01:50]}  Kg7 {[%clk 0:01:28]} 27. Bd6 {[%clk 0:01:48]}  Kg8 {[%clk 0:01:27]} 28. f3 {[%clk 0:01:47]}  Kg7 {[%clk 0:01:26]} 29. Kf2 {[%clk 0:01:47]}  f6 {[%clk 0:01:23]} 30. g4 {[%clk 0:01:47]}  hxg4 {[%clk 0:01:15]} 31. fxg4 {[%clk 0:01:48]}  Kf7 {[%clk 0:01:09]} 32. h5 {[%clk 0:01:36]}  gxh5 {[%clk 0:00:59]} 33. gxh5 {[%clk 0:01:37]}  Ng5 {[%clk 0:00:55]} 34. Bg6+ {[%clk 0:01:27]}  Ke6 {[%clk 0:00:53]} 35. Bf4 {[%clk 0:01:16]}  Ne4+ {[%clk 0:00:53]} 36. Ke3 {[%clk 0:01:10]}  Nxc3 {[%clk 0:00:49]} 37. axb5 {[%clk 0:00:55]}  cxb5 {[%clk 0:00:48]} 38. h6 {[%clk 0:00:55]}  a5 {[%clk 0:00:41]} 39. h7 {[%clk 0:00:54]}  a4 {[%clk 0:00:41]} 40. Kd2 {[%clk 0:00:44]}  b4 {[%clk 0:00:40]} 41. Re1+ {[%clk 0:00:42]}  Kd7 {[%clk 0:00:36]} 42. Bf5+ {[%clk 0:00:43]}  Kc6 {[%clk 0:00:35]} 43. Bh6 {[%clk 0:00:40]}  a3 {[%clk 0:00:34]} 44. Bg7 {[%clk 0:00:40]}  a2 {[%clk 0:00:32]} 45. Ra1 {[%clk 0:00:40]}  Kb5 {[%clk 0:00:07]} 46. h8=Q {[%clk 0:00:36]}  Rxh8 {[%clk 0:00:07]} 47. Bxh8 {[%clk 0:00:37]}  Nb1+ {[%clk 0:00:05]} 48. Kc1 {[%clk 0:00:36]}  Kc4 {[%clk 0:00:04]} 49. Bxf6 {[%clk 0:00:34]}  Kc3 {[%clk 0:00:02]} 50. Rxb1 {[%clk 0:00:32]}  axb1=Q+ {[%clk 0:00:01]} 51. Kxb1 {[%clk 0:00:33]}  b3 {[%clk 0:00:02]} 52. cxb3 {[%clk 0:00:32]}  Kxb3 {[%clk 0:00:02]} 53. Kc1 {[%clk 0:00:30]}  Kc3 {[%clk 0:00:03]} 54. Kd1 {[%clk 0:00:30]} 1-0


[Site "https://www.chess.com"]

[Event "Titled Tuesday Blitz April 11 Late 2023"]
[White "Coenen, Michael"]
[Black "Barp, Alberto"]
[WhiteFideId "4697367"]
[BlackFideId "872555"]
[WhiteElo "2328"]
[BlackElo "2313"]
[Result "1/2-1/2"]
[Round "10"]
[TimeControl "180+2"]
[Date "2023.04.11"]
[WhiteClock "0:00:12"]
[BlackClock "0:00:04"]

1. Nf3 {[%clk 0:03:00]}  d5 {[%clk 0:03:00]} 2. e3 {[%clk 0:03:01]}  Nf6 {[%clk 0:02:59]} 3. c4 {[%clk 0:03:01]}  e6 {[%clk 0:02:58]} 4. b3 {[%clk 0:03:01]}  b6 {[%clk 0:02:53]} 5. Bb2 {[%clk 0:03:01]}  Bb7 {[%clk 0:02:53]} 6. Nc3 {[%clk 0:02:59]}  Nbd7 {[%clk 0:02:53]} 7. d4 {[%clk 0:02:59]}  a6 {[%clk 0:02:53]} 8. Bd3 {[%clk 0:02:59]}  Bd6 {[%clk 0:02:52]} 9. O-O {[%clk 0:02:59]}  O-O {[%clk 0:02:51]} 10. Rc1 {[%clk 0:02:59]}  Ne4 {[%clk 0:02:51]} 11. Bb1 {[%clk 0:02:55]}  f5 {[%clk 0:02:46]} 12. Ne2 {[%clk 0:02:55]}  Qe7 {[%clk 0:02:23]} 13. Ne5 {[%clk 0:02:50]}  Nxe5 {[%clk 0:02:13]} 14. dxe5 {[%clk 0:02:51]}  Bc5 {[%clk 0:02:14]} 15. cxd5 {[%clk 0:02:30]}  Bxd5 {[%clk 0:02:12]} 16. Nf4 {[%clk 0:02:16]}  Rad8 {[%clk 0:01:59]} 17. Qe2 {[%clk 0:02:03]}  Bb7 {[%clk 0:01:57]} 18. Rfd1 {[%clk 0:02:02]}  Qf7 {[%clk 0:01:24]} 19. a3 {[%clk 0:01:51]}  a5 {[%clk 0:01:23]} 20. b4 {[%clk 0:01:44]}  axb4 {[%clk 0:01:21]} 21. axb4 {[%clk 0:01:45]}  Bxb4 {[%clk 0:01:20]} 22. Qc4 {[%clk 0:01:30]}  Bc5 {[%clk 0:00:53]} 23. Nxe6 {[%clk 0:00:58]}  Rxd1+ {[%clk 0:00:39]} 24. Rxd1 {[%clk 0:00:59]}  Nxf2 {[%clk 0:00:39]} 25. Kxf2 {[%clk 0:00:49]}  f4 {[%clk 0:00:40]} 26. Ba2 {[%clk 0:00:22]}  fxe3+ {[%clk 0:00:34]} 27. Ke2 {[%clk 0:00:20]}  Bf3+ {[%clk 0:00:19]} 28. gxf3 {[%clk 0:00:19]}  Qxf3+ {[%clk 0:00:18]} 29. Kd3 {[%clk 0:00:18]}  Qxd1+ {[%clk 0:00:18]} 30. Kc3 {[%clk 0:00:17]}  Qd2+ {[%clk 0:00:13]} 31. Kb3 {[%clk 0:00:17]}  Qd1+ {[%clk 0:00:11]} 32. Kc3 {[%clk 0:00:12]}  Qe1+ {[%clk 0:00:06]} 33. Kb3 {[%clk 0:00:12]}  Qd1+ {[%clk 0:00:04]} 34. Kc3 {[%clk 0:00:12]} 1/2-1/2


[Site "https://www.chess.com"]